fUSD/lending_fUSD_20260602
["ID","MTS","AMOUNT","RATE_DAILY","PERIOD"]
[423770333,1780412066000,-1020.51,0.00029434,30]
[423770328,1780412066000,-1020.51,0.00029316,30]
[423770329,1780412066000,-1020.51,0.00029339,30]
[423770324,1780412066000,-1020.51,0.00029245,30]
[423770326,1780412066000,-1020.51,0.00029268,30]
[423770327,1780412066000,-1020.51,0.00029292,30]
[423770331,1780412066000,-1020.51,0.00029387,30]
[423770323,1780412066000,-1020.51,0.00029221,30]
[423770322,1780412066000,-1020.51,0.00029197,30]
[423770320,1780412066000,-1020.51,0.0002915,30]
[423770321,1780412066000,-1020.51,0.00029174,30]
[423770317,1780412066000,-1020.51,0.00029079,30]
[423770315,1780412066000,-1001.0,0.00029041,120]
[423770319,1780412066000,-1020.51,0.00029126,30]
[423770318,1780412066000,-1020.51,0.00029103,30]
[423770316,1780412066000,-1020.51,0.00029055,30]
[423770325,1780412066000,-500.0,0.00029248,60]
[423770348,1780412067000,-694.0,0.00029605,30]
[423770345,1780412067000,-1020.51,0.000296,30]
[423770344,1780412067000,-1020.51,0.00029576,30]
[423770343,1780412067000,-1020.51,0.00029553,30]
[423770342,1780412067000,-151.0,0.00029539,60]
[423770338,1780412067000,-1020.51,0.00029505,30]
[423770340,1780412067000,-562.02,0.00029527,30]
[423770339,1780412067000,-579.4,0.00029527,30]
[423770337,1780412067000,-1020.51,0.00029482,30]
[423770336,1780412067000,-1020.51,0.00029458,30]
[423770346,1780412067000,-3432.0,0.00029605,30]
[423770341,1780412067000,-1020.51,0.00029529,30]
[423770347,1780412067000,-1011.0,0.00029605,30]
[423770335,1780412067000,-310.83,0.00029452,30]
[423770351,1780412067000,-898.0,0.00029611,30]
[423770349,1780412067000,-4617.0,0.00029605,30]
[423770362,1780412067000,-8152.65517075,0.00029899,30]
[423770361,1780412067000,-196.73835824,0.000298,31]
[423770360,1780412067000,-1500.0,0.00029796,60]
[423770359,1780412067000,-500.0,0.00029796,60]
[423770358,1780412067000,-749.0,0.00029618,30]
[423770363,1780412067000,-3525139.04442376,0.000299,120]
[423770354,1780412067000,-2169.0,0.00029611,30]
[423770357,1780412067000,-1525.0,0.00029611,30]
[423770355,1780412067000,-706.0,0.00029611,30]
[423770353,1780412067000,-1338.0,0.00029611,30]
[423770350,1780412067000,-893.0,0.00029611,30]
[423770352,1780412067000,-3690.0,0.00029611,30]
[423770356,1780412067000,-1280.0,0.00029611,30]
[423770385,1780412197000,-500.0,0.00010514,2]
[423770383,1780412197000,-500.0,0.00010514,2]
[423770384,1780412197000,-500.0,0.00010514,2]
[423770381,1780412197000,-500.0,0.00010514,2]
[423770379,1780412197000,-615.47807088,0.00010514,2]
[423770377,1780412197000,-500.0,0.00010514,2]
[423770378,1780412197000,-605.39609471,0.00010514,2]
[423770376,1780412197000,-300.0,0.00010514,2]
[423770375,1780412197000,-1193.360925,0.00010462,2]
[423770386,1780412197000,-500.0,0.00010514,2]
[423770380,1780412197000,-500.0,0.00010514,2]
[423770388,1780412197000,-500.0,0.00010514,2]
[423770382,1780412197000,-500.0,0.00010514,2]
[423770390,1780412197000,-500.0,0.00010514,2]
[423770387,1780412197000,-500.0,0.00010514,2]
[423770400,1780412197000,-500.0,0.00010514,2]
[423770398,1780412197000,-500.0,0.00010514,2]
[423770397,1780412197000,-500.0,0.00010514,2]
[423770396,1780412197000,-500.0,0.00010514,2]
[423770399,1780412197000,-500.0,0.00010514,2]
[423770394,1780412197000,-500.0,0.00010514,2]
[423770393,1780412197000,-500.0,0.00010514,2]
[423770392,1780412197000,-500.0,0.00010514,2]
[423770391,1780412197000,-346.92366257,0.00010514,2]
[423770389,1780412197000,-390.53502444,0.00010514,2]
[423770395,1780412197000,-472.026151,0.00010514,2]
[423770412,1780412198000,-643.07246744,0.00010514,2]
[423770420,1780412198000,-500.0,0.00010789,2]
[423770419,1780412198000,-226.54843932,0.00010666,7]
[423770418,1780412198000,-215.67541492,0.00010541,2]
[423770417,1780412198000,-500.0,0.00010515,2]
[423770415,1780412198000,-711.0,0.00010515,2]
[423770416,1780412198000,-1200.0,0.00010515,2]
[423770414,1780412198000,-361.12604801,0.00010514,2]
[423770413,1780412198000,-500.0,0.00010514,2]
[423770405,1780412198000,-500.0,0.00010514,2]
[423770410,1780412198000,-500.0,0.00010514,2]
[423770409,1780412198000,-500.0,0.00010514,2]
[423770408,1780412198000,-500.0,0.00010514,2]
[423770407,1780412198000,-500.0,0.00010514,2]
[423770406,1780412198000,-500.0,0.00010514,2]
[423770404,1780412198000,-500.0,0.00010514,2]
[423770403,1780412198000,-500.0,0.00010514,2]
[423770401,1780412198000,-500.0,0.00010514,2]
[423770402,1780412198000,-500.0,0.00010514,2]
[423770411,1780412198000,-164.16079084,0.00010514,2]
[423770424,1780412198000,-1105.85389309,0.00011183,2]
[423770425,1780412198000,-500.0,0.00011337,2]
[423770422,1780412198000,-500.0,0.00011063,2]
[423770421,1780412198000,-152.0,0.0001096,7]
[423770444,1780412198000,-1612.0,0.00012723,2]
[423770443,1780412198000,-587.0,0.00012709,2]
[423770441,1780412198000,-500.0,0.00012455,2]
[423770442,1780412198000,-255.0,0.00012565,2]
[423770438,1780412198000,-1000.0,0.00012225,2]
[423770437,1780412198000,-2000.0,0.00012052,2]
[423770436,1780412198000,-500.0,0.00011611,2]
[423770439,1780412198000,-165.8,0.00012388,2]
[423770435,1780412198000,-379.4931453,0.00011568,2]
[423770440,1780412198000,-187.37538467,0.00012407,2]
[423770431,1780412198000,-278.28957408,0.00011509,2]
[423770433,1780412198000,-1680.0,0.00011567,2]
[423770426,1780412198000,-207.5302741,0.0001144,2]
[423770427,1780412198000,-187.37538468,0.0001144,2]
[423770428,1780412198000,-150.0,0.00011496,2]
[423770423,1780412198000,-7528.5465,0.00011103,2]
[423770430,1780412198000,-237.32,0.00011497,2]
[423770432,1780412198000,-420.0,0.00011559,2]
[423770434,1780412198000,-250.0,0.00011568,2]
[423770429,1780412198000,-2000.0,0.00011497,2]
[423770457,1780412199000,-500.0,0.00013424,2]
[423770466,1780412199000,-500.0,0.00013424,2]
[423770467,1780412199000,-500.0,0.00013424,2]
[423770465,1780412199000,-500.0,0.00013424,2]
[423770464,1780412199000,-537.33389924,0.00013424,2]
[423770461,1780412199000,-500.0,0.00013424,2]
[423770460,1780412199000,-500.0,0.00013424,2]
[423770462,1780412199000,-500.0,0.00013424,2]
[423770459,1780412199000,-500.0,0.00013424,2]
[423770463,1780412199000,-500.0,0.00013424,2]
[423770458,1780412199000,-500.0,0.00013424,2]
[423770447,1780412199000,-150.99,0.00012893,2]
[423770455,1780412199000,-12661.34831978,0.00013403,2]
[423770454,1780412199000,-1591.0,0.000134,2]
[423770450,1780412199000,-500.0,0.00013082,2]
[423770451,1780412199000,-1500.0,0.00013082,2]
[423770452,1780412199000,-2000.0,0.00013094,2]
[423770453,1780412199000,-500.0,0.00013356,2]
[423770449,1780412199000,-323.0,0.0001301,2]
[423770446,1780412199000,-186.146,0.00012727,2]
[423770448,1780412199000,-186.88,0.00012928,2]
[423770445,1780412199000,-1992.446,0.00012727,2]
[423770456,1780412199000,-500.0,0.00013424,2]
[423770468,1780412199000,-500.0,0.00013424,2]
[423770470,1780412199000,-500.0,0.00013424,2]
[423770471,1780412199000,-500.0,0.00013424,2]
[423770494,1780412199000,-500.0,0.00013424,2]
[423770491,1780412199000,-500.0,0.00013424,2]
[423770469,1780412199000,-500.0,0.00013424,2]
[423770492,1780412199000,-500.0,0.00013424,2]
[423770490,1780412199000,-500.0,0.00013424,2]
[423770489,1780412199000,-500.0,0.00013424,2]
[423770488,1780412199000,-305.13958142,0.00013424,2]
[423770487,1780412199000,-500.0,0.00013424,2]
[423770486,1780412199000,-500.0,0.00013424,2]
[423770485,1780412199000,-260.50307483,0.00013424,2]
[423770480,1780412199000,-500.0,0.00013424,2]
[423770493,1780412199000,-500.0,0.00013424,2]
[423770483,1780412199000,-500.0,0.00013424,2]
[423770482,1780412199000,-500.0,0.00013424,2]
[423770472,1780412199000,-500.0,0.00013424,2]
[423770474,1780412199000,-500.0,0.00013424,2]
[423770476,1780412199000,-500.0,0.00013424,2]
[423770477,1780412199000,-500.0,0.00013424,2]
[423770473,1780412199000,-500.0,0.00013424,2]
[423770475,1780412199000,-306.6186348,0.00013424,2]
[423770479,1780412199000,-500.0,0.00013424,2]
[423770481,1780412199000,-500.0,0.00013424,2]
[423770484,1780412199000,-500.0,0.00013424,2]
[423770478,1780412199000,-500.0,0.00013424,2]
[423770505,1780412200000,-500.0,0.00013424,2]
[423770510,1780412200000,-500.0,0.00013424,2]
[423770509,1780412200000,-500.0,0.00013424,2]
[423770508,1780412200000,-500.0,0.00013424,2]
[423770507,1780412200000,-500.0,0.00013424,2]
[423770506,1780412200000,-542.20690969,0.00013424,2]
[423770504,1780412200000,-500.0,0.00013424,2]
[423770503,1780412200000,-500.0,0.00013424,2]
[423770498,1780412200000,-500.0,0.00013424,2]
[423770502,1780412200000,-190.83014846,0.00013424,2]
[423770499,1780412200000,-180.45208771,0.00013424,2]
[423770501,1780412200000,-150.0,0.00013424,2]
[423770500,1780412200000,-150.0,0.00013424,2]
[423770497,1780412200000,-500.0,0.00013424,2]
[423770496,1780412200000,-500.0,0.00013424,2]
[423770495,1780412200000,-500.0,0.00013424,2]
[423770512,1780412200000,-500.0,0.00013424,2]
[423770513,1780412200000,-500.0,0.00013424,2]
[423770523,1780412200000,-500.0,0.00013698,2]
[423770515,1780412200000,-203.67873537,0.00013424,2]
[423770514,1780412200000,-500.0,0.00013424,2]
[423770531,1780412200000,-500.0,0.00013698,2]
[423770530,1780412200000,-500.0,0.00013698,2]
[423770528,1780412200000,-500.0,0.00013698,2]
[423770527,1780412200000,-500.0,0.00013698,2]
[423770525,1780412200000,-500.0,0.00013698,2]
[423770526,1780412200000,-500.0,0.00013698,2]
[423770524,1780412200000,-500.0,0.00013698,2]
[423770529,1780412200000,-500.0,0.00013698,2]
[423770521,1780412200000,-26472.80209431,0.00013599,2]
[423770520,1780412200000,-200.0,0.00013579,2]
[423770518,1780412200000,-2000.0,0.00013559,2]
[423770517,1780412200000,-6536.49259028,0.00013503,2]
[423770519,1780412200000,-12661.34831974,0.00013569,2]
[423770516,1780412200000,-339.19900647,0.00013455,2]
[423770511,1780412200000,-500.0,0.00013424,2]
[423770522,1780412200000,-151.0,0.00013696,2]
[423770544,1780412201000,-500.0,0.00013698,2]
[423770546,1780412201000,-500.0,0.00013698,2]
[423770545,1780412201000,-500.0,0.00013698,2]
[423770549,1780412201000,-500.0,0.00013698,2]
[423770552,1780412201000,-500.0,0.00013698,2]
[423770554,1780412201000,-500.0,0.00013698,2]
[423770553,1780412201000,-500.0,0.00013698,2]
[423770551,1780412201000,-500.0,0.00013698,2]
[423770555,1780412201000,-500.0,0.00013698,2]
[423770548,1780412201000,-500.0,0.00013698,2]
[423770550,1780412201000,-500.0,0.00013698,2]
[423770547,1780412201000,-157.88923758,0.00013698,2]
[423770536,1780412201000,-532.02,0.00013698,2]
[423770541,1780412201000,-500.0,0.00013698,2]
[423770543,1780412201000,-500.0,0.00013698,2]
[423770542,1780412201000,-500.0,0.00013698,2]
[423770540,1780412201000,-500.0,0.00013698,2]
[423770538,1780412201000,-500.0,0.00013698,2]
[423770535,1780412201000,-500.0,0.00013698,2]
[423770534,1780412201000,-500.0,0.00013698,2]
[423770558,1780412201000,-500.0,0.00013698,2]
[423770537,1780412201000,-500.0,0.00013698,2]
[423770533,1780412201000,-500.0,0.00013698,2]
[423770532,1780412201000,-500.0,0.00013698,2]
[423770539,1780412201000,-500.0,0.00013698,2]
[423770557,1780412201000,-500.0,0.00013698,2]
[423770556,1780412201000,-500.0,0.00013698,2]
[423770562,1780412201000,-500.0,0.00013698,2]
[423770582,1780412201000,-500.0,0.00013698,2]
[423770584,1780412201000,-500.0,0.00013698,2]
[423770559,1780412201000,-500.0,0.00013698,2]
[423770585,1780412201000,-500.0,0.00013698,2]
[423770581,1780412201000,-500.0,0.00013698,2]
[423770579,1780412201000,-500.0,0.00013698,2]
[423770577,1780412201000,-500.0,0.00013698,2]
[423770580,1780412201000,-500.0,0.00013698,2]
[423770578,1780412201000,-500.0,0.00013698,2]
[423770576,1780412201000,-360.48137374,0.00013698,2]
[423770571,1780412201000,-500.0,0.00013698,2]
[423770575,1780412201000,-500.0,0.00013698,2]
[423770574,1780412201000,-500.0,0.00013698,2]
[423770583,1780412201000,-500.0,0.00013698,2]
[423770573,1780412201000,-500.0,0.00013698,2]
[423770570,1780412201000,-500.0,0.00013698,2]
[423770569,1780412201000,-500.0,0.00013698,2]
[423770568,1780412201000,-266.86415071,0.00013698,2]
[423770567,1780412201000,-500.0,0.00013698,2]
[423770565,1780412201000,-500.0,0.00013698,2]
[423770566,1780412201000,-500.0,0.00013698,2]
[423770563,1780412201000,-500.0,0.00013698,2]
[423770564,1780412201000,-500.0,0.00013698,2]
[423770561,1780412201000,-500.0,0.00013698,2]
[423770560,1780412201000,-500.0,0.00013698,2]
[423770572,1780412201000,-500.0,0.00013698,2]
[423770601,1780412202000,-500.0,0.00013698,2]
[423770603,1780412202000,-500.0,0.00013698,2]
[423770602,1780412202000,-500.0,0.00013698,2]
[423770608,1780412202000,-500.0,0.00013698,2]
[423770600,1780412202000,-500.0,0.00013698,2]
[423770604,1780412202000,-500.0,0.00013698,2]
[423770607,1780412202000,-500.0,0.00013698,2]
[423770594,1780412202000,-500.0,0.00013698,2]
[423770599,1780412202000,-465.9276456,0.00013698,2]
[423770597,1780412202000,-500.0,0.00013698,2]
[423770591,1780412202000,-500.0,0.00013698,2]
[423770596,1780412202000,-500.0,0.00013698,2]
[423770593,1780412202000,-500.0,0.00013698,2]
[423770595,1780412202000,-500.0,0.00013698,2]
[423770590,1780412202000,-503.57198463,0.00013698,2]
[423770592,1780412202000,-500.0,0.00013698,2]
[423770589,1780412202000,-282.99065593,0.00013698,2]
[423770588,1780412202000,-500.0,0.00013698,2]
[423770587,1780412202000,-500.0,0.00013698,2]
[423770586,1780412202000,-500.0,0.00013698,2]
[423770605,1780412202000,-500.0,0.00013698,2]
[423770598,1780412202000,-500.0,0.00013698,2]
[423770609,1780412202000,-500.0,0.00013698,2]
[423770611,1780412202000,-500.0,0.00013698,2]
[423770631,1780412202000,-555.06182314,0.00013699,2]
[423770633,1780412202000,-555.06182314,0.00013699,2]
[423770632,1780412202000,-555.06182314,0.00013699,2]
[423770630,1780412202000,-555.06182314,0.00013699,2]
[423770629,1780412202000,-555.06182314,0.00013699,2]
[423770628,1780412202000,-555.06182314,0.00013699,2]
[423770626,1780412202000,-254.77998324,0.00013698,2]
[423770627,1780412202000,-166.66,0.00013699,2]
[423770625,1780412202000,-500.0,0.00013698,2]
[423770624,1780412202000,-500.0,0.00013698,2]
[423770623,1780412202000,-500.0,0.00013698,2]
[423770622,1780412202000,-500.0,0.00013698,2]
[423770606,1780412202000,-500.0,0.00013698,2]
[423770620,1780412202000,-500.0,0.00013698,2]
[423770616,1780412202000,-500.0,0.00013698,2]
[423770619,1780412202000,-500.0,0.00013698,2]
[423770618,1780412202000,-500.0,0.00013698,2]
[423770617,1780412202000,-500.0,0.00013698,2]
[423770615,1780412202000,-500.0,0.00013698,2]
[423770613,1780412202000,-500.0,0.00013698,2]
[423770614,1780412202000,-500.0,0.00013698,2]
[423770612,1780412202000,-500.0,0.00013698,2]
[423770610,1780412202000,-500.0,0.00013698,2]
[423770621,1780412202000,-500.0,0.00013698,2]
[423770647,1780412203000,-555.06182314,0.00013699,2]
[423770648,1780412203000,-555.06182314,0.00013699,2]
[423770649,1780412203000,-555.06182314,0.00013699,2]
[423770654,1780412203000,-555.06182314,0.00013699,2]
[423770651,1780412203000,-555.06182314,0.00013699,2]
[423770652,1780412203000,-555.06182314,0.00013699,2]
[423770653,1780412203000,-555.06182314,0.00013699,2]
[423770646,1780412203000,-555.06182314,0.00013699,2]
[423770650,1780412203000,-555.06182314,0.00013699,2]
[423770645,1780412203000,-555.06182314,0.00013699,2]
[423770639,1780412203000,-555.06182314,0.00013699,2]
[423770644,1780412203000,-555.06182314,0.00013699,2]
[423770642,1780412203000,-555.06182314,0.00013699,2]
[423770641,1780412203000,-555.06182314,0.00013699,2]
[423770640,1780412203000,-555.06182314,0.00013699,2]
[423770636,1780412203000,-555.06182314,0.00013699,2]
[423770638,1780412203000,-555.06182314,0.00013699,2]
[423770635,1780412203000,-555.06182314,0.00013699,2]
[423770637,1780412203000,-555.06182314,0.00013699,2]
[423770634,1780412203000,-555.06182314,0.00013699,2]
[423770656,1780412203000,-555.06182314,0.00013699,2]
[423770643,1780412203000,-555.06182314,0.00013699,2]
[423770655,1780412203000,-555.06182314,0.00013699,2]
[423770662,1780412203000,-555.06182314,0.00013699,2]
[423770658,1780412203000,-555.06182314,0.00013699,2]
[423770678,1780412203000,-555.06182314,0.00013699,2]
[423770679,1780412203000,-555.06182314,0.00013699,2]
[423770677,1780412203000,-555.06182314,0.00013699,2]
[423770675,1780412203000,-555.06182314,0.00013699,2]
[423770673,1780412203000,-555.06182314,0.00013699,2]
[423770657,1780412203000,-555.06182314,0.00013699,2]
[423770676,1780412203000,-555.06182314,0.00013699,2]
[423770672,1780412203000,-555.06182314,0.00013699,2]
[423770671,1780412203000,-555.06182314,0.00013699,2]
[423770670,1780412203000,-555.06182314,0.00013699,2]
[423770674,1780412203000,-555.06182314,0.00013699,2]
[423770668,1780412203000,-555.06182314,0.00013699,2]
[423770666,1780412203000,-555.06182314,0.00013699,2]
[423770667,1780412203000,-555.06182314,0.00013699,2]
[423770664,1780412203000,-555.06182314,0.00013699,2]
[423770663,1780412203000,-555.06182314,0.00013699,2]
[423770665,1780412203000,-555.06182314,0.00013699,2]
[423770660,1780412203000,-555.06182314,0.00013699,2]
[423770661,1780412203000,-555.06182314,0.00013699,2]
[423770659,1780412203000,-555.06182314,0.00013699,2]
[423770669,1780412203000,-555.06182314,0.00013699,2]
[423770695,1780412204000,-2886.66614092,0.0001396,2]
[423770694,1780412204000,-12661.34831974,0.00013902,2]
[423770696,1780412204000,-26472.80209425,0.00013971,2]
[423770698,1780412204000,-166.66,0.00013973,2]
[423770704,1780412204000,-1591.0,0.0001404,2]
[423770700,1780412204000,-840.21,0.00014,2]
[423770697,1780412204000,-823.0,0.00013972,2]
[423770702,1780412204000,-2319.0,0.0001404,2]
[423770693,1780412204000,-500.0,0.00013868,2]
[423770699,1780412204000,-250.0,0.00014,2]
[423770692,1780412204000,-166.66,0.00013836,2]
[423770701,1780412204000,-840.21,0.00014,2]
[423770690,1780412204000,-213.60267404,0.00013748,2]
[423770688,1780412204000,-12661.34831974,0.00013736,2]
[423770689,1780412204000,-433.0,0.00013738,2]
[423770685,1780412204000,-163.51,0.000137,2]
[423770684,1780412204000,-555.06182314,0.00013699,2]
[423770683,1780412204000,-555.06182314,0.00013699,2]
[423770686,1780412204000,-164.0,0.0001372,2]
[423770682,1780412204000,-555.06182314,0.00013699,2]
[423770681,1780412204000,-555.06182314,0.00013699,2]
[423770680,1780412204000,-555.06182314,0.00013699,2]
[423770691,1780412204000,-26472.80209425,0.00013785,2]
[423770705,1780412204000,-12661.34831974,0.00014068,2]
[423770687,1780412204000,-1320.0,0.0001372,2]
[423770706,1780412204000,-166.66,0.0001411,2]
[423770703,1780412204000,-164.0,0.0001404,2]
[423770729,1780412204000,-932.0,0.0001424,2]
[423770728,1780412204000,-151.191,0.0001424,2]
[423770726,1780412204000,-150.0,0.0001424,2]
[423770724,1780412204000,-250.0,0.0001424,2]
[423770723,1780412204000,-295.331,0.0001424,2]
[423770725,1780412204000,-167.382,0.0001424,2]
[423770727,1780412204000,-187.0,0.0001424,2]
[423770721,1780412204000,-247.005,0.0001424,2]
[423770719,1780412204000,-208.07,0.0001424,2]
[423770720,1780412204000,-250.0,0.0001424,2]
[423770722,1780412204000,-166.854,0.0001424,2]
[423770717,1780412204000,-150.0,0.0001424,2]
[423770716,1780412204000,-3640.0,0.0001424,2]
[423770714,1780412204000,-500.0,0.00014232,2]
[423770713,1780412204000,-1188.0,0.0001422,2]
[423770712,1780412204000,-162.0,0.000142,2]
[423770710,1780412204000,-233.303553,0.00014185,2]
[423770715,1780412204000,-12661.34831974,0.00014235,2]
[423770711,1780412204000,-1225.0,0.00014192,2]
[423770709,1780412204000,-451.17820839,0.00014176,2]
[423770708,1780412204000,-1712.0,0.00014163,2]
[423770707,1780412204000,-26472.80209425,0.00014157,2]
[423770718,1780412204000,-163.0,0.0001424,2]
[423770730,1780412205000,-418.0,0.0001424,2]
[423770731,1780412205000,-1226.0,0.0001424,2]
[423770732,1780412205000,-166.66,0.00014247,2]
[423770734,1780412205000,-53528.03526438,0.0001425,2]
[423770733,1780412205000,-922.0,0.00014248,2]
[423770741,1780412228000,-150.0,0.00011079,2]
[423770735,1780412228000,-160.0,0.00010548,2]
[423770737,1780412228000,-500.0,0.00010811,2]
[423770736,1780412228000,-250.0,0.00010811,2]
[423770739,1780412228000,-150.0,0.00011074,2]
[423770742,1780412228000,-150.0,0.00011081,2]
[423770738,1780412228000,-500.0,0.00010972,2]
[423770743,1780412228000,-150.0,0.00011084,2]
[423770740,1780412228000,-150.0,0.00011076,2]
[423770746,1780412228000,-150.0,0.00011091,2]
[423770744,1780412228000,-150.0,0.00011086,2]
[423770747,1780412228000,-150.0,0.00011094,2]
[423770745,1780412228000,-150.0,0.00011089,2]
[423770750,1780412228000,-500.0,0.00011603,2]
[423770748,1780412228000,-193.0,0.00011603,2]
[423770749,1780412228000,-250.0,0.00011603,2]
[423770752,1780412228000,-150.0,0.00012854,2]
[423770751,1780412228000,-300.0,0.00012854,2]
[423770753,1780412229000,-48847.0,0.00012855,2]
[423770756,1780412310000,-169.3365597,0.00011955,2]
[423770755,1780412310000,-215.67541492,0.00010974,2]
[423770754,1780412310000,-1183.14257563,0.00010974,2]
[423770758,1780412310000,-882.75650763,0.00012055,2]
[423770759,1780412310000,-158498.39095278,0.00012369,2]
[423770757,1780412310000,-1050.69798934,0.00012055,2]
[423770883,1780413004000,428.09777388,0.0002876,120]
[423770909,1780413038000,-500.0,0.00011139,2]
[423770910,1780413038000,-500.0,0.00011139,2]
[423770908,1780413038000,-500.0,0.00011139,2]
[423770911,1780413038000,-500.0,0.00011139,2]
[423770914,1780413038000,-500.0,0.00011139,2]
[423770913,1780413038000,-500.0,0.00011139,2]
[423770915,1780413038000,-500.0,0.00011139,2]
[423770919,1780413038000,-500.0,0.00011139,2]
[423770916,1780413038000,-500.0,0.00011139,2]
[423770921,1780413038000,-100.12196753,0.00011139,2]
[423770912,1780413038000,-500.0,0.00011139,2]
[423770917,1780413038000,-500.0,0.00011139,2]
[423770903,1780413038000,-500.0,0.00011139,2]
[423770898,1780413038000,-500.0,0.00011139,2]
[423770904,1780413038000,-500.0,0.00011139,2]
[423770902,1780413038000,-500.0,0.00011139,2]
[423770907,1780413038000,-500.0,0.00011139,2]
[423770905,1780413038000,-500.0,0.00011139,2]
[423770897,1780413038000,-210.05944716,0.00011139,2]
[423770896,1780413038000,-500.0,0.00011139,2]
[423770894,1780413038000,-1375.22,0.0001112,2]
[423770895,1780413038000,-205.21374029,0.00011139,2]
[423770893,1780413038000,-169.33655969,0.00011067,2]
[423770899,1780413038000,-500.0,0.00011139,2]
[423770901,1780413038000,-500.0,0.00011139,2]
[423770918,1780413038000,-500.0,0.00011139,2]
[423770906,1780413038000,-500.0,0.00011139,2]
[423770920,1780413038000,-467.04077217,0.00011139,2]
[423770900,1780413038000,-500.0,0.00011139,2]
[423770928,1780413038000,-300.0,0.0001114,2]
[423770971,1780413038000,-150.0,0.0001177,2]
[423770968,1780413038000,-2190.78,0.00011763,2]
[423770966,1780413038000,-150.0,0.00011719,2]
[423770964,1780413038000,-150.0,0.00011667,2]
[423770961,1780413038000,-150.0,0.00011616,2]
[423770962,1780413038000,-315.7,0.00011633,2]
[423770953,1780413038000,-150.63514995,0.00011564,2]
[423770958,1780413038000,-150.0,0.00011564,2]
[423770960,1780413038000,-150.0,0.00011564,2]
[423770955,1780413038000,-150.0,0.00011564,2]
[423770952,1780413038000,-150.0,0.00011564,2]
[423770950,1780413038000,-150.0,0.00011564,2]
[423770947,1780413038000,-255.40957955,0.00011564,2]
[423770949,1780413038000,-151.24972356,0.00011564,2]
[423770922,1780413038000,-288.18867524,0.00011139,2]
[423770946,1780413038000,-500.0,0.00011415,2]
[423770948,1780413038000,-150.0,0.00011564,2]
[423770929,1780413038000,-3.03083644,0.0001114,2]
[423770927,1780413038000,-500.0,0.00011139,2]
[423770926,1780413038000,-500.0,0.00011139,2]
[423770930,1780413038000,-1196.96916356,0.0001114,2]
[423770933,1780413038000,-648.76342617,0.0001114,2]
[423770923,1780413038000,-111.68935723,0.00011139,2]
[423770937,1780413038000,-1195.64911877,0.00011142,2]
[423770940,1780413038000,-804.35088123,0.00011142,2]
[423770931,1780413038000,-602.7882336,0.0001114,2]
[423770942,1780413038000,-1000.0,0.00011167,2]
[423770944,1780413038000,-167.23,0.00011387,2]
[423770935,1780413038000,-500.0,0.00011141,2]
[423770992,1780413039000,-1168.96228211,0.00012005,2]
[423771001,1780413039000,-4279.19,0.00012055,2]
[423770998,1780413039000,-150.0,0.00012027,2]
[423771005,1780413039000,-182.36968093,0.00012063,2]
[423770997,1780413039000,-579.24190369,0.00012005,2]
[423770988,1780413039000,-150.0,0.00011976,2]
[423770978,1780413039000,-150.0,0.00011873,2]
[423770982,1780413039000,-150.0,0.00011886,2]
[423770984,1780413039000,-164.89,0.00011899,2]